fUST/lending_fUST_20250722
["ID","MTS","AMOUNT","RATE_DAILY","PERIOD"]
[373940991,1753158656692,-460.0,0.00019411,2]
[373940993,1753158656701,-460.0,0.00019411,2]
[373940995,1753158656710,-1802.32,0.00019411,2]
[373940997,1753158656720,-1791.05,0.00019411,2]
[373940998,1753158656729,-360.0,0.00019443,2]
[373941000,1753158656739,-460.0,0.00019509,2]
[373941002,1753158656749,-751.55,0.00019509,2]
[373941004,1753158656758,-1039.4,0.00019509,2]
[373941006,1753158656768,-396.0,0.00019564,3]
[373941008,1753158656777,-683.33,0.00019679,2]
[373941010,1753158656786,-422.40152105,0.00019679,2]
[373941012,1753158656797,-639.98,0.00019679,2]
[373941014,1753158656806,-460.0,0.00019679,2]
[373941016,1753158656815,-1818.01,0.00019679,2]
[373941019,1753158656825,-548.21290271,0.00019679,2]
[373941021,1753158656835,-176.07935944,0.00019679,2]
[373941023,1753158656844,-460.0,0.0001968,2]
[373941025,1753158656853,-307.79298301,0.00019681,2]
[373941027,1753158656863,-460.0,0.00019681,2]
[373941029,1753158656872,-460.0,0.00019681,2]
[373941031,1753158656882,-196.31292849,0.00019681,2]
[373941033,1753158656891,-460.0,0.00019682,2]
[373941035,1753158656900,-460.0,0.00019683,2]
[373941037,1753158656909,-460.0,0.00019683,2]
[373941039,1753158656918,-460.0,0.00019684,2]
[373941041,1753158656928,-460.0,0.00019684,2]
[373941042,1753158656939,-1308.67,0.00019684,2]
[373941045,1753158656949,-460.0,0.00019684,2]
[373941047,1753158656958,-1373.43,0.00019685,2]
[373941048,1753158656967,-596.13,0.00019685,2]
[373941051,1753158656976,-878.43,0.00019685,2]
[373941053,1753158656986,-460.0,0.00019685,2]
[373941054,1753158656996,-1802.32,0.00019685,2]
[373941056,1753158657005,-1791.05,0.00019685,2]
[373941059,1753158657014,-827.38036214,0.00019693,2]
[373941060,1753158657024,-231.28369723,0.00019709,2]
[373941062,1753158657038,-460.0,0.00019783,2]
[373941065,1753158657048,-751.55,0.00019783,2]
[373941067,1753158657057,-1039.4,0.00019783,2]
[373941069,1753158657066,-196.74727324,0.00019816,2]
[373941071,1753158657075,-500.0,0.00019836,2]
[373941073,1753158657084,-168.0,0.0001987,2]
[373941075,1753158657093,-168.0,0.00019893,2]
[373941077,1753158657103,-1000.0,0.00019921,2]
[373941079,1753158657113,-500.0,0.00019942,2]
[373941081,1753158657124,-683.33,0.00019953,2]
[373941083,1753158657133,-639.98,0.00019953,2]
[373941084,1753158657143,-460.0,0.00019953,2]
[373941086,1753158657152,-1818.01,0.00019953,2]
[373941088,1753158657161,-460.0,0.00019954,2]
[373941090,1753158657171,-460.0,0.00019955,2]
[373941092,1753158657180,-460.0,0.00019955,2]
[373941094,1753158657192,-460.0,0.00019956,2]
[373941096,1753158657202,-460.0,0.00019957,2]
[373941098,1753158657211,-317.08971548,0.00019957,2]
[373941100,1753158657221,-460.0,0.00019958,2]
[373941102,1753158657230,-460.0,0.00019958,2]
[373941104,1753158657240,-1308.67,0.00019958,2]
[373941106,1753158657249,-460.0,0.00019958,2]
[373941108,1753158657259,-1373.43,0.00019959,2]
[373941110,1753158657268,-596.13,0.00019959,2]
[373941112,1753158657278,-878.43,0.00019959,2]
[373941114,1753158657287,-460.0,0.00019959,2]
[373941116,1753158657296,-1802.32,0.00019959,2]
[373941118,1753158657306,-1791.05,0.00019959,2]
[373941120,1753158657315,-460.0,0.00019991,2]
[373941122,1753158657325,-160.0,0.0002,3]
[373941125,1753158657335,-151.59614997,0.0002,2]
[373941126,1753158657345,-827.38036214,0.00020003,2]
[373941128,1753158657354,-460.0,0.00020057,2]
[373941130,1753158657364,-751.55,0.00020057,2]
[373941133,1753158657373,-1039.4,0.00020057,2]
[373941135,1753158657383,-396.0,0.00020088,3]
[373941136,1753158657393,-168.0,0.0002013,2]
[373941139,1753158657403,-168.0,0.00020174,2]
[373941140,1753158657412,-217.896681,0.00020187,2]
[373941142,1753158657422,-587.0,0.00020208,2]
[373941144,1753158657436,-683.33,0.00020227,2]
[373941146,1753158657445,-639.98,0.00020227,2]
[373941148,1753158657455,-460.0,0.00020227,2]
[373941150,1753158657464,-1818.01,0.00020227,2]
[373941152,1753158657473,-460.0,0.00020228,2]
[373941154,1753158657482,-460.0,0.00020229,2]
[373941156,1753158657492,-460.0,0.00020229,2]
[373941158,1753158657501,-460.0,0.0002023,2]
[373941160,1753158657510,-460.0,0.00020231,2]
[373941162,1753158657519,-460.0,0.00020232,2]
[373941164,1753158657529,-460.0,0.00020232,2]
[373941166,1753158657538,-1308.67,0.00020232,2]
[373941168,1753158657547,-163.2920689,0.00020232,2]
[373941170,1753158657556,-1373.43,0.00020233,2]
[373941172,1753158657565,-596.13,0.00020233,2]
[373941174,1753158657575,-878.43,0.00020233,2]
[373941176,1753158657585,-460.0,0.00020233,2]
[373941178,1753158657594,-1802.32,0.00020233,2]
[373941180,1753158657603,-1791.05,0.00020233,2]
[373941182,1753158657613,-827.38036214,0.00020314,3]
[373941184,1753158657623,-460.0,0.00020331,2]
[373941186,1753158657632,-751.55,0.00020331,2]
[373941188,1753158657642,-1039.4,0.00020331,2]
[373941190,1753158657651,-168.0,0.00020381,2]
[373941192,1753158657660,-1000.0,0.00020384,2]
[373941194,1753158657670,-1500.0,0.00020468,2]
[373941196,1753158657679,-205.83298264,0.0002049,2]
[373941198,1753158657689,-683.33,0.00020501,2]
[373941199,1753158657700,-639.98,0.00020501,2]
[373941201,1753158657712,-460.0,0.00020501,2]
[373941204,1753158657722,-1818.01,0.00020501,2]
[373941205,1753158657732,-460.0,0.00020502,2]
[373941207,1753158657741,-460.0,0.00020503,2]
[373941209,1753158657750,-460.0,0.00020503,2]
[373941211,1753158657760,-460.0,0.00020504,2]
[373941213,1753158657769,-460.0,0.00020505,2]
[373941215,1753158657778,-460.0,0.00020506,2]
[373941217,1753158657788,-460.0,0.00020506,2]
[373941219,1753158657797,-1308.67,0.00020506,2]
[373941221,1753158657806,-1373.43,0.00020507,2]
[373941223,1753158657815,-596.13,0.00020507,2]
[373941225,1753158657825,-878.43,0.00020507,2]
[373941227,1753158657834,-307.13964724,0.00020507,2]
[373941560,1753158661372,4378.09436517,0.00016701,2]
[373942124,1753158691546,649.66909956,0.00016701,2]
[373942125,1753158691582,4350.33090044,0.00016701,2]
[373942127,1753158698529,196.107012,0.00013699,2]
[373942128,1753158707640,5000.0,0.00016701,2]
[373942129,1753158723041,5000.0,0.00016701,2]
[373942130,1753158738399,5000.0,0.00016701,2]
[373942131,1753158754148,5000.0,0.00016701,2]
[373942133,1753158770330,4070.51652256,0.00016701,2]
[373942134,1753158786561,929.48347744,0.00016701,2]
[373942135,1753158786609,2899.00375906,0.00016701,2]
[373942137,1753158911917,199.1909423,0.0001643,2]
[373942141,1753159481317,211.7366656,0.00015935,2]
[373942152,1753159705641,251.892848,0.00013699,2]
[373942211,1753159831943,-4806.0,0.00016837,2]
[373942213,1753159831952,-1457.84311869,0.00016838,2]
[373942215,1753159831962,-300.0,0.00016843,2]
[373942217,1753159831971,-300.0,0.00016843,2]
[373942219,1753159831980,-300.0,0.00016843,2]
[373942220,1753159831989,-300.0,0.00016843,2]
[373942223,1753159831999,-1200.0,0.00016843,2]
[373942225,1753159832009,-300.0,0.00016843,2]
[373942227,1753159832018,-10738.44187176,0.00016844,2]
[373942229,1753159832028,-460.0,0.00016933,2]
[373942230,1753159832037,-460.0,0.00016933,2]
[373942232,1753159832046,-461.30220969,0.00016933,2]
[373942234,1753159832056,-428.19837951,0.00016933,2]
[373942237,1753159832065,-460.0,0.00016933,2]
[373942238,1753159832075,-460.85464407,0.00016933,2]
[373942240,1753159832084,-460.0,0.00016933,2]
[373942242,1753159832094,-460.85828245,0.00016933,2]
[373942244,1753159832103,-460.0,0.00016933,2]
[373942246,1753159832112,-34070.71612224,0.00016934,2]
[373942248,1753159832124,-4588.02201804,0.00016934,2]
[373942251,1753159832135,-4463.71083206,0.00016934,2]
[373942253,1753159832148,-6877.55102766,0.00016934,2]
[373942255,1753159832158,-460.0,0.00016934,2]
[373942257,1753159832167,-460.0,0.00016934,2]
[373942259,1753159832176,-460.0,0.00016934,2]
[373942261,1753159832185,-460.0,0.00016934,2]
[373942263,1753159832194,-232.16633728,0.00016934,2]
[373942265,1753159832203,-460.0,0.00016934,2]
[373942267,1753159832213,-460.0,0.00016934,2]
[373942269,1753159832222,-460.0,0.00016934,2]
[373942271,1753159832232,-460.5649527,0.00016934,2]
[373942273,1753159832242,-460.0,0.00016934,2]
[373942275,1753159832251,-460.0,0.00016934,2]
[373942277,1753159832261,-460.0,0.00016934,2]
[373942279,1753159832271,-462.3023024,0.00016934,2]
[373942281,1753159832280,-460.0,0.00016934,2]
[373942283,1753159832290,-460.0,0.00016934,2]
[373942285,1753159832299,-460.0,0.00016934,2]
[373942287,1753159832309,-460.0,0.00016934,2]
[373942289,1753159832319,-460.0,0.00016934,2]
[373942291,1753159832328,-460.0,0.00016934,2]
[373942293,1753159832338,-460.0,0.00016934,2]
[373942295,1753159832347,-162.81104477,0.00016934,2]
[373942297,1753159832360,-460.0,0.00016934,2]
[373942299,1753159832373,-460.0,0.00016934,2]
[373942301,1753159832383,-460.0,0.00016934,2]
[373942303,1753159832393,-460.0,0.00016934,2]
[373942305,1753159832405,-460.0,0.00016934,2]
[373942307,1753159832415,-460.0,0.00016934,2]
[373942309,1753159832425,-460.0,0.00016934,2]
[373942311,1753159832435,-460.0,0.00016934,2]
[373942313,1753159832447,-460.0,0.00016934,2]
[373942316,1753159832458,-460.0,0.00016934,2]
[373942318,1753159832468,-541.73092169,0.00016934,2]
[373942320,1753159832478,-460.0,0.00016934,2]
[373942322,1753159832488,-460.0,0.00016934,2]
[373942324,1753159832498,-460.0,0.00016934,2]
[373942326,1753159832507,-460.0,0.00016934,2]
[373942328,1753159832517,-460.0,0.00016934,2]
[373942330,1753159832527,-460.0,0.00016934,2]
[373942332,1753159832537,-460.0,0.00016934,2]
[373942334,1753159832547,-460.0,0.00016934,2]
[373942336,1753159832556,-460.0,0.00016934,2]
[373942338,1753159832566,-537.28,0.00016934,2]
[373942340,1753159832576,-460.0,0.00016934,2]
[373942342,1753159832596,-460.0,0.00016934,2]
[373942344,1753159832606,-461.84865898,0.00016934,2]
[373942346,1753159832616,-162.28079979,0.00016934,2]
[373942348,1753159832626,-460.0,0.00016934,2]
[373942350,1753159832636,-270.45844601,0.00016934,2]
[373942352,1753159832645,-460.0,0.00016934,2]
[373942354,1753159832657,-463.33362544,0.00016934,2]
[373942356,1753159832667,-460.0,0.00016934,2]
[373942358,1753159832677,-460.0,0.00016934,2]
[373942360,1753159832686,-487.41154843,0.00016934,2]
[373942362,1753159832696,-460.0,0.00016934,2]
[373942364,1753159832706,-460.0,0.00016934,2]
[373942366,1753159832715,-460.0,0.00016934,2]
[373942368,1753159832725,-403.32982664,0.00016934,2]
[373942371,1753159832735,-160.0,0.00016934,2]
[373942373,1753159832745,-515.7454818,0.00016935,2]
[373942375,1753159832754,-460.0,0.00016935,2]
[373942377,1753159832764,-460.0,0.00016935,2]
[373942379,1753159832773,-379.02807658,0.00016935,2]
[373942381,1753159832782,-293.57597022,0.00016935,2]
[373942383,1753159832791,-983.6,0.00016935,2]
[373942385,1753159832801,-460.0,0.00016935,2]
[373942386,1753159832810,-460.0,0.00016935,2]
[373942388,1753159832820,-460.0,0.00016935,2]
[373942390,1753159832829,-460.0,0.00016935,2]
[373942393,1753159832842,-460.0,0.00016935,2]
[373942395,1753159832851,-925.89,0.00016935,2]
[373942397,1753159832861,-460.0,0.00016935,2]
[373942399,1753159832870,-460.0,0.00016935,2]
[373942401,1753159832881,-500.0,0.00016935,2]
[373942403,1753159832890,-500.0,0.00016935,2]
[373942405,1753159832900,-500.0,0.00016935,2]
[373942407,1753159832909,-500.0,0.00016935,2]
[373942409,1753159832919,-184.51758972,0.00016935,2]
[373942411,1753159832928,-303.33689549,0.00016935,2]
[373942413,1753159832938,-500.0,0.00016935,2]
[373942415,1753159832947,-232.49991823,0.00016935,2]
[373942417,1753159832956,-500.0,0.00016935,2]
[373942419,1753159832967,-322.75305128,0.00016935,2]
[373942421,1753159832976,-500.0,0.00016935,2]
[373942423,1753159832985,-500.0,0.00016935,2]
[373942425,1753159832995,-510.50988597,0.00016935,2]
[373942427,1753159833004,-500.0,0.00016935,2]
[373942429,1753159833014,-500.0,0.00016935,2]
[373942431,1753159833024,-500.0,0.00016935,2]
[373942433,1753159833033,-500.0,0.00016935,2]
[373942435,1753159833042,-500.0,0.00016935,2]
[373942437,1753159833052,-500.0,0.00016935,2]
[373942439,1753159833061,-500.0,0.00016935,2]
[373942441,1753159833071,-500.0,0.00016935,2]
[373942443,1753159833081,-500.0,0.00016935,2]
[373942445,1753159833091,-500.0,0.00016935,2]
[373942447,1753159833101,-500.0,0.00016935,2]
[373942449,1753159833111,-500.0,0.00016935,2]
[373942451,1753159833122,-500.0,0.00016935,2]
[373942453,1753159833131,-500.0,0.00016935,2]
[373942455,1753159833142,-324.85572492,0.00016935,2]
[373942457,1753159833154,-500.0,0.00016935,2]
[373942459,1753159833164,-500.0,0.00016935,2]
[373942461,1753159833174,-500.0,0.00016935,2]
[373942463,1753159833184,-500.0,0.00016935,2]
[373942466,1753159833194,-500.0,0.00016935,2]
[373942468,1753159833204,-500.0,0.00016935,2]
[373942470,1753159833214,-500.0,0.00016935,2]
[373942472,1753159833224,-500.0,0.00016935,2]
[373942474,1753159833234,-500.0,0.00016935,2]
[373942476,1753159833245,-500.0,0.00016935,2]
[373942478,1753159833255,-500.0,0.00016935,2]
[373942480,1753159833265,-500.0,0.00016935,2]
[373942482,1753159833276,-500.0,0.00016935,2]
[373942484,1753159833286,-500.0,0.00016935,2]
[373942486,1753159833296,-500.0,0.00016935,2]
[373942488,1753159833306,-500.0,0.00016935,2]
[373942490,1753159833316,-500.0,0.00016935,2]
[373942492,1753159833327,-460.0,0.00016935,2]
[373942494,1753159833337,-460.0,0.00016935,2]
[373942496,1753159833347,-500.0,0.00016935,2]
[373942498,1753159833357,-500.0,0.00016935,2]
[373942500,1753159833369,-500.0,0.00016935,2]
[373942502,1753159833380,-500.0,0.00016935,2]
[373942504,1753159833390,-250.0,0.00016935,2]
[373942506,1753159833403,-460.0,0.00016935,2]
[373942508,1753159833414,-460.0,0.00016935,2]
[373942510,1753159833426,-460.0,0.00016935,2]
[373942512,1753159833436,-460.0,0.00016935,2]
[373942514,1753159833449,-460.0,0.00016935,2]
[373942516,1753159833459,-460.0,0.00016935,2]
[373942519,1753159833471,-460.0,0.00016935,2]
[373942521,1753159833482,-500.0,0.00016936,2]
[373942523,1753159833493,-460.0,0.00016936,2]
[373942525,1753159833503,-460.0,0.00016936,2]
[373942527,1753159833513,-460.0,0.00016936,2]
[373942529,1753159833523,-265.21065748,0.00016936,2]
[373942530,1753159833533,-463.88601594,0.00016936,2]
[373942532,1753159833543,-460.0,0.00016936,2]
[373942534,1753159833553,-460.0,0.00016936,2]
[373942536,1753159833563,-460.0,0.00016936,2]
[373942538,1753159833572,-460.0,0.00016936,2]
[373942540,1753159833582,-460.0,0.00016936,2]
[373942541,1753159833591,-460.0,0.00016936,2]
[373942542,1753159833601,-459.01110601,0.00016936,2]
[373942543,1753159833611,-460.0,0.00016936,2]
[373942544,1753159833620,-460.0,0.00016936,2]
[373942545,1753159833630,-460.0,0.00016936,2]
[373942546,1753159833640,-460.0,0.00016936,2]
[373942547,1753159833655,-460.0,0.00016936,2]
[373942548,1753159833665,-463.22346639,0.00016936,2]
[373942549,1753159833675,-460.0,0.00016936,2]
[373942550,1753159833684,-460.0,0.00016936,2]
[373942551,1753159833693,-460.0,0.00016936,2]
[373942552,1753159833704,-470.57008552,0.00016936,2]
[373942553,1753159833714,-460.0,0.00016936,2]
[373942554,1753159833724,-461.6274339,0.00016936,2]
[373942571,1753159833735,-460.0,0.00016936,2]
[373942573,1753159833976,-460.0,0.00016936,2]
[373942576,1753159833987,-460.0,0.00016936,2]
[373942577,1753159833997,-462.45359486,0.00016936,2]
[373942580,1753159834006,-254.87851502,0.00016936,2]
[373942582,1753159834016,-460.0,0.00016936,2]
[373942584,1753159834026,-465.36576993,0.00016936,2]
[373942585,1753159834035,-460.0,0.00016936,2]
[373942588,1753159834045,-460.0,0.00016936,2]
[373942590,1753159834055,-460.0,0.00016936,2]
[373942591,1753159834064,-460.0,0.00016936,2]
[373942594,1753159834074,-466.7650482,0.00016936,2]
[373942595,1753159834083,-460.0,0.00016936,2]
[373942597,1753159834093,-500.0,0.00016936,2]
[373942599,1753159834102,-516.4272939,0.00016936,2]
[373942601,1753159834112,-460.0,0.00016936,2]
[373942603,1753159834121,-460.0,0.00016936,2]
[373942605,1753159834131,-460.0,0.00016936,2]
[373942607,1753159834140,-460.0,0.00016936,2]
[373942610,1753159834151,-458.6307424,0.00016936,2]
[373942612,1753159834161,-460.0,0.00016936,2]
[373942614,1753159834171,-460.0,0.00016936,2]
[373942616,1753159834181,-460.0,0.00016936,2]
[373942618,1753159834191,-460.0,0.00016936,2]
[373942620,1753159834201,-460.0,0.00016936,2]
[373942622,1753159834211,-460.0,0.00016936,2]
[373942624,1753159834221,-460.0,0.00016936,2]
[373942626,1753159834231,-460.0,0.00016936,2]
[373942628,1753159834241,-460.0,0.00016936,2]
[373942630,1753159834250,-460.0,0.00016936,2]
[373942632,1753159834260,-460.0,0.00016936,2]
[373942634,1753159834270,-460.0,0.00016936,2]
[373942636,1753159834280,-460.0,0.00016936,2]
[373942638,1753159834290,-460.0,0.00016936,2]
[373942640,1753159834301,-1904.31,0.00016936,2]
[373942642,1753159834311,-460.0,0.00016936,2]
[373942644,1753159834321,-460.0,0.00016936,2]
[373942646,1753159834330,-460.0,0.00016936,2]
[373942648,1753159834340,-460.0,0.00016936,2]
[373942650,1753159834350,-460.0,0.00016936,2]
[373942652,1753159834360,-460.0,0.00016936,2]
[373942654,1753159834374,-460.0,0.00016936,2]
[373942656,1753159834384,-460.0,0.00016936,2]
[373942658,1753159834394,-460.0,0.00016936,2]
[373942660,1753159834404,-460.0,0.00016936,2]
[373942662,1753159834415,-460.0,0.00016936,2]
[373942664,1753159834424,-460.0,0.00016936,2]
[373942666,1753159834434,-460.0,0.00016936,2]
[373942668,1753159834444,-460.0,0.00016936,2]
[373942670,1753159834455,-460.0,0.00016936,2]
[373942672,1753159834466,-460.0,0.00016936,2]
[373942675,1753159834476,-460.0,0.00016936,2]
[373942676,1753159834485,-500.0,0.00016936,2]
[373942678,1753159834495,-501.82861809,0.00016936,2]
[373942681,1753159834505,-460.0,0.00016936,2]
[373942683,1753159834515,-460.0,0.00016936,2]
[373942684,1753159834524,-460.0,0.00016936,2]
[373942686,1753159834534,-460.0,0.00016936,2]
[373942688,1753159834543,-460.0,0.00016936,2]
[373942690,1753159834553,-460.0,0.00016936,2]
[373942693,1753159834564,-460.0,0.00016936,2]
[373942695,1753159834573,-460.0,0.00016936,2]
[373942697,1753159834582,-460.0,0.00016936,2]
[373942698,1753159834591,-460.0,0.00016936,2]
[373942701,1753159834602,-460.0,0.00016936,2]
[373942703,1753159834611,-460.0,0.00016936,2]
[373942705,1753159834620,-460.0,0.00016936,2]
[373942707,1753159834629,-460.0,0.00016936,2]
[373942709,1753159834638,-460.0,0.00016936,2]
[373942710,1753159834647,-460.0,0.00016936,2]
[373942713,1753159834660,-460.0,0.00016936,2]
[373942715,1753159834669,-460.0,0.00016936,2]
[373942716,1753159834680,-460.0,0.00016936,2]
[373942718,1753159834689,-460.0,0.00016936,2]
[373942721,1753159834699,-460.0,0.00016936,2]
[373942722,1753159834708,-460.0,0.00016936,2]
[373942724,1753159834718,-460.0,0.00016936,2]
[373942726,1753159834727,-460.0,0.00016936,2]
[373942728,1753159834737,-460.0,0.00016936,2]
[373942731,1753159834747,-460.0,0.00016936,2]
[373942733,1753159834757,-460.0,0.00016936,2]
[373942735,1753159834771,-460.0,0.00016936,2]
[373942737,1753159834780,-460.0,0.00016936,2]
[373942739,1753159834790,-460.0,0.00016936,2]
[373942741,1753159834800,-460.0,0.00016936,2]
[373942743,1753159834809,-1176.08,0.00016936,2]
[373942745,1753159834819,-460.0,0.00016936,2]
[373942747,1753159834828,-460.0,0.00016936,2]
[373942749,1753159834838,-460.0,0.00016936,2]
[373942751,1753159834847,-460.0,0.00016936,2]
[373942753,1753159834857,-460.0,0.00016936,2]
[373942755,1753159834866,-460.0,0.00016936,2]
[373942757,1753159834876,-467.31220708,0.00016936,2]
[373942759,1753159834885,-460.0,0.00016936,2]
[373942761,1753159834895,-460.0,0.00016936,2]
[373942763,1753159834907,-460.0,0.00016936,2]
[373942765,1753159834916,-460.0,0.00016936,2]
[373942768,1753159834927,-460.0,0.00016936,2]
[373942770,1753159834936,-460.0,0.00016936,2]
[373942772,1753159834946,-460.0,0.00016936,2]
[373942774,1753159834956,-460.0,0.00016936,2]
[373942776,1753159834965,-460.0,0.00016936,2]
[373942778,1753159834974,-460.0,0.00016937,2]
[373942780,1753159834983,-1000.0,0.00016937,2]
[373942782,1753159834992,-461.24260034,0.00016937,2]
[373942784,1753159835002,-460.0,0.00016937,2]
[373942786,1753159835011,-460.0,0.00016937,2]
[373942788,1753159835020,-460.0,0.00016937,2]
[373942790,1753159835030,-460.0,0.00016937,2]
[373942792,1753159835039,-460.0,0.00016937,2]
[373942794,1753159835048,-460.0,0.00016937,2]
[373942796,1753159835058,-460.0,0.00016937,2]
[373942798,1753159835067,-460.0,0.00016937,2]
[373942800,1753159835076,-256.07028802,0.00016937,2]
[373942802,1753159835086,-460.0,0.00016937,2]
[373942804,1753159835095,-455.45840667,0.00016937,2]
[373942806,1753159835105,-460.0,0.00016937,2]
[373942808,1753159835115,-460.0,0.00016937,2]
[373942810,1753159835125,-460.0,0.00016937,2]
[373942812,1753159835134,-463.14586353,0.00016937,2]
[373942814,1753159835144,-460.0,0.00016937,2]
[373942816,1753159835154,-460.70638115,0.00016937,2]
[373942818,1753159835163,-465.9192075,0.00016937,2]
[373942820,1753159835173,-460.0,0.00016937,2]
[373942822,1753159835183,-460.0,0.00016937,2]
[373942824,1753159835193,-460.0,0.00016937,2]
[373942826,1753159835202,-460.0,0.00016937,2]
[373942828,1753159835211,-460.0,0.00016937,2]
[373942830,1753159835220,-460.0,0.00016937,2]
[373942832,1753159835230,-460.0,0.00016937,2]
[373942834,1753159835239,-460.0,0.00016937,2]
[373942836,1753159835249,-460.0,0.00016937,2]
[373942838,1753159835258,-460.0,0.00016937,2]
[373942840,1753159835268,-460.0,0.00016937,2]
[373942842,1753159835277,-460.0,0.00016937,2]
[373942844,1753159835287,-460.0,0.00016937,2]
[373942846,1753159835297,-460.0,0.00016937,2]
[373942848,1753159835306,-84.33791808,0.00016937,2]
[373942851,1753159835323,-375.66208192,0.00016937,2]
[373942853,1753159835332,-210.08706037,0.00016937,2]
[373942943,1753159837854,-1042.50000061,0.00016838,2]
[373942944,1753159837866,-589.6,0.00016838,2]
[373942945,1753159837879,-1842.3,0.00016838,2]
[373942946,1753159837891,-170.5118866,0.00016838,2]
[373942947,1753159837901,-838.78293963,0.00016937,2]
[373942948,1753159837912,-533.21,0.00016937,2]
[373942949,1753159837921,-460.0,0.00016938,2]
[373942950,1753159837931,-460.0,0.00016938,2]
[373942951,1753159837940,-460.0,0.00016938,2]
[373942952,1753159837950,-462.65681737,0.00016938,2]
[373942953,1753159837959,-321.66710831,0.00016938,2]
[373942954,1753159838069,-138.33289169,0.00016938,2]
[373942955,1753159838079,-460.0,0.00016938,2]
[373942956,1753159838089,-460.0,0.00016938,2]
[373942957,1753159838099,-460.0,0.00016938,2]
[373942958,1753159838108,-460.0,0.00016938,2]
[373942959,1753159838117,-460.0,0.00016938,2]
[373942960,1753159838127,-460.0,0.00016938,2]
[373942961,1753159838136,-337.69784731,0.00016938,2]
[373942962,1753159838148,-122.30215269,0.00016938,2]
[373942963,1753159838158,-460.0,0.00016938,2]
[373942964,1753159838167,-462.67480493,0.00016938,2]
[373942965,1753159838177,-460.0,0.00016938,2]
[373942966,1753159838186,-462.826328,0.00016938,2]
[373942967,1753159838198,-462.16100348,0.00016938,2]
[373942968,1753159838207,-460.0,0.00016938,2]
[373942969,1753159838217,-460.0,0.00016938,2]
[373942970,1753159838226,-450.68759197,0.00016938,2]
[373942971,1753159838237,-460.0,0.00016938,2]
[373942972,1753159838247,-460.0,0.00016938,2]
[373942973,1753159838257,-460.0,0.00016938,2]
[373942974,1753159838267,-461.23579914,0.00016938,2]
[373942975,1753159838276,-460.0,0.00016938,2]
[373942976,1753159838286,-460.0,0.00016938,2]
[373942977,1753159838295,-461.48393375,0.00016938,2]
[373942979,1753159838306,-460.0,0.00016938,2]
[373942981,1753159838316,-460.0,0.00016938,2]
[373942983,1753159838326,-460.0,0.00016938,2]
[373942984,1753159838335,-460.0,0.00016938,2]
[373942985,1753159838345,-460.0,0.00016938,2]
[373942987,1753159838354,-460.0,0.00016938,2]
[373942989,1753159838365,-462.87830416,0.00016938,2]
[373942991,1753159838376,-460.0,0.00016938,2]
[373942993,1753159838385,-460.0,0.00016938,2]
[373942995,1753159838395,-461.30803092,0.00016938,2]
[373942997,1753159838404,-460.0,0.00016938,2]
[373942999,1753159838414,-460.0,0.00016938,2]
[373943000,1753159838423,-460.0,0.00016938,2]